bitfinex/quotes_BTCUSD_20250826
["timestamp","ask_amount","ask_price","bid_price","bid_amount"]
[1756181840431,0.00521646,110360.0,110350.0,0.1842415]
[1756181840639,0.00521646,110360.0,110350.0,0.3413615]
[1756181840838,0.18644154,110360.0,110350.0,0.3413615]
[1756181841045,0.18644154,110360.0,110350.0,0.3393615]
[1756181841457,0.52644154,110360.0,110350.0,0.3403615]
[1756181841796,0.53493322,110360.0,110350.0,0.3403615]
[1756181842006,0.53493322,110360.0,110350.0,0.002]
[1756181842332,0.6459595,110360.0,110350.0,0.002]
[1756181842529,0.72101447,110360.0,110350.0,0.002]
[1756181843122,0.69655834,110360.0,110350.0,0.001]
[1756181843371,0.67957864,110360.0,110350.0,0.001]
[1756181843584,0.68057864,110360.0,110350.0,0.001]
[1756181843951,0.70503477,110360.0,110350.0,0.001]
[1756181844150,0.52125793,110340.0,110330.0,0.1574]
[1756181844343,0.52638793,110340.0,110330.0,0.1574]
[1756181844841,0.52127929,110330.0,110310.0,0.3363426]
[1756181845042,0.52127929,110330.0,110320.0,0.15732]
[1756181845273,0.52127929,110330.0,110320.0,0.33861079]
[1756181845274,0.52323929,110330.0,110320.0,0.33861079]
[1756181845489,0.34196,110330.0,110320.0,0.33861079]
[1756181845692,0.34196,110330.0,110320.0,0.34058079]
[1756181845891,0.34196,110330.0,110320.0,0.34372079]
[1756181846105,0.34196,110330.0,110320.0,0.33861079]
[1756181846106,0.52323435,110330.0,110320.0,0.33861079]
[1756181846296,0.52323435,110330.0,110320.0,0.18129079]
[1756181846675,0.18129079,110320.0,110310.0,0.06968]
[1756181846881,0.18130722,110310.0,110300.0,0.00314]
[1756181847090,0.00215,110310.0,110300.0,0.34387366]
[1756181847306,0.52429079,110320.0,110300.0,0.34387366]
[1756181847487,0.52129079,110320.0,110300.0,0.34387366]
[1756181847687,0.52129079,110320.0,110300.0,0.18643366]
[1756181847940,0.52429079,110320.0,110310.0,0.1574]
[1756181848165,0.00215,110310.0,110300.0,0.18494067]
[1756181848372,0.00215,110310.0,110300.0,0.34431067]
[1756181848574,0.52129079,110320.0,110300.0,0.34431067]
[1756181848782,0.52129079,110320.0,110300.0,0.34931067]
[1756181848994,0.00215,110310.0,110300.0,0.34431067]
[1756181849226,0.52129079,110320.0,110300.0,0.34431067]
[1756181849482,0.52129079,110320.0,110310.0,0.001]
[1756181849722,0.52344079,110320.0,110310.0,0.1574]
[1756181850028,0.52344079,110320.0,110310.0,0.33870722]
[1756181850654,0.34215,110320.0,110310.0,0.33870722]
[1756181850856,0.34215,110320.0,110310.0,0.34381722]
[1756181852667,0.34215,110320.0,110310.0,0.34067722]
[1756181852668,0.52344079,110320.0,110310.0,0.34067722]
[1756181852870,0.52344079,110320.0,110310.0,0.34381722]
[1756181853303,0.34,110320.0,110310.0,0.34381722]
[1756181855457,0.19331735,110350.0,110330.0,0.18127435]
[1756181855670,0.43156202,110340.0,110330.0,0.33859435]
[1756181855849,0.027356,110340.0,110330.0,0.34370435]
[1756181856057,0.0001,110340.0,110330.0,0.34370435]
[1756181856260,0.34,110340.0,110330.0,0.34370435]
[1756181856848,0.34012,110340.0,110330.0,0.34370435]
[1756181857049,0.34,110340.0,110330.0,0.34370435]
[1756181857449,0.18122517,110360.0,110350.0,0.1812415]
[1756181857662,0.64003819,110360.0,110350.0,0.1812415]
[1756181857904,0.64003819,110360.0,110350.0,0.3366415]
[1756181858624,0.64018128,110360.0,110350.0,0.3366415]
[1756181859036,0.64118128,110360.0,110350.0,0.3356415]
[1756181859230,0.02839409,110360.0,110350.0,0.3407115]
[1756181859473,0.00124309,110360.0,110350.0,0.3407115]
[1756181860030,0.00124309,110360.0,110350.0,0.3356015]
[1756181860592,0.00014309,110360.0,110350.0,0.3375715]
[1756181860786,0.00014309,110360.0,110350.0,0.3407115]
[1756181861011,0.00229309,110360.0,110350.0,0.3355615]
[1756181861422,0.18651817,110360.0,110350.0,0.002]
[1756181861624,0.365391,110360.0,110350.0,0.002]
[1756181861794,0.365391,110360.0,110350.0,0.003]
[1756181862037,0.30523219,110360.0,110350.0,0.003]
[1756181862238,0.30523219,110360.0,110350.0,0.1842415]
[1756181862239,0.30223219,110360.0,110350.0,0.1842415]
[1756181862663,0.12100711,110360.0,110350.0,0.1842415]
[1756181862895,0.02954509,110360.0,110350.0,0.1893515]
[1756181863076,0.02739509,110360.0,110350.0,0.1893515]
[1756181863295,0.02954509,110360.0,110350.0,0.1883515]
[1756181863485,0.02739509,110360.0,110350.0,0.1883515]
[1756181864086,0.02739509,110360.0,110350.0,0.1863515]
[1756181864487,0.00014309,110360.0,110350.0,0.1863515]
[1756181866420,0.00014309,110360.0,110350.0,0.1873515]
[1756181866797,0.00014309,110360.0,110350.0,0.27881352]
[1756181867004,0.00014309,110360.0,110350.0,0.43609352]
[1756181867591,0.00014309,110360.0,110350.0,0.43705352]
[1756181871095,0.18119311,110380.0,110370.0,0.18120866]
[1756181871305,0.18334311,110380.0,110370.0,0.18120866]
[1756181871516,0.18334311,110380.0,110370.0,0.33824866]
[1756181872930,0.18434311,110380.0,110370.0,0.33824866]
[1756181873398,0.18434311,110380.0,110370.0,0.18120866]
[1756181873598,0.18434311,110380.0,110370.0,0.33808866]
[1756181873780,0.20070789,110380.0,110370.0,0.18120866]
[1756181873989,0.20070789,110380.0,110370.0,0.15688]
[1756181874299,0.18120866,110370.0,110360.0,0.33806508]
[1756181874483,0.00215,110370.0,110360.0,0.33806508]
[1756181875474,0.00215,110370.0,110360.0,0.34315508]
[1756181876426,0.56780289,110380.0,110370.0,0.18120866]
[1756181876578,0.56980289,110380.0,110370.0,0.18120866]
[1756181877694,0.34,110370.0,110360.0,0.34100508]
[1756181877859,0.34,110370.0,110360.0,0.34315508]
[1756181878873,0.342,110370.0,110360.0,0.18122508]
[1756181879080,0.34,110370.0,110360.0,0.34291508]
[1756181879283,0.34,110370.0,110360.0,0.18631508]
[1756181879490,0.342,110370.0,110360.0,0.34291508]
[1756181880734,0.342,110370.0,110360.0,0.18631508]
[1756181881033,0.342,110370.0,110360.0,0.34287508]
[1756181881257,0.34,110370.0,110360.0,0.34279508]
[1756181882657,0.34,110370.0,110360.0,0.18631508]
[1756181882846,0.34,110370.0,110360.0,0.34279508]
[1756181884946,0.34,110370.0,110360.0,0.18631508]
[1756181885147,0.34,110370.0,110360.0,0.34287508]
[1756181886155,0.34,110370.0,110360.0,0.18631508]
[1756181886363,0.34,110370.0,110360.0,0.34279508]
[1756181887383,0.34848766,110370.0,110360.0,0.34279508]
[1756181890607,0.00848766,110370.0,110360.0,0.34279508]
[1756181890832,0.01636478,110380.0,110370.0,0.18120866]
[1756181890985,0.02485478,110380.0,110370.0,0.18335866]
[1756181891186,0.00849,110380.0,110370.0,0.18629866]
[1756181891972,0.34,110390.0,110380.0,0.18119224]
[1756181892174,0.34848896,110390.0,110380.0,0.34276224]
[1756181892609,0.00848896,110390.0,110380.0,0.34276224]
[1756181894289,0.36451973,110390.0,110380.0,0.18628224]
[1756181894493,0.34848896,110390.0,110380.0,0.34272224]
[1756181896193,0.34848896,110390.0,110380.0,0.18628224]
[1756181896407,0.34848896,110390.0,110380.0,0.34264224]
[1756181897702,0.36502979,110390.0,110380.0,0.34264224]
[1756181897877,0.36502979,110390.0,110380.0,0.34564224]
[1756181898085,0.36502979,110390.0,110380.0,0.34764224]
[1756181900345,0.36702979,110390.0,110380.0,0.19128224]
[1756181900548,0.54820562,110390.0,110380.0,0.34235224]
[1756181900821,0.55116562,110390.0,110380.0,0.005]
[1756181900994,0.87228011,110390.0,110380.0,0.005]
[1756181901191,0.91907499,110390.0,110380.0,0.005]
[1756181901390,0.91907499,110390.0,110380.0,0.003]
[1756181901567,0.91907174,110390.0,110380.0,0.003]
[1756181901764,0.91907174,110390.0,110380.0,0.004]
[1756181902357,0.84557927,110390.0,110380.0,0.004]
[1756181902561,0.84557927,110390.0,110380.0,0.001]
[1756181902768,0.84557927,110390.0,110380.0,0.003]
[1756181903157,0.84557927,110390.0,110380.0,0.001]
[1756181903362,0.52119224,110380.0,110370.0,0.15616]
[1756181903577,0.53463795,110380.0,110360.0,0.1812216]
[1756181903772,0.53463795,110380.0,110360.0,0.3373816]
[1756181904191,0.52120866,110370.0,110350.0,0.26292357]
[1756181904391,0.53265437,110370.0,110360.0,0.15616]
[1756181904595,0.53465437,110370.0,110360.0,0.15616]
[1756181905512,0.52122508,110360.0,110350.0,0.2558615]
[1756181905732,0.53173264,110360.0,110350.0,0.002]
[1756181905948,0.53490264,110360.0,110350.0,0.002]
[1756181906582,0.5212415,110350.0,110340.0,0.15912]
[1756181906787,0.5232615,110350.0,110340.0,0.15926309]
[1756181907188,0.5232615,110350.0,110340.0,0.16133309]
[1756181907427,0.5232615,110350.0,110340.0,0.15630309]
[1756181907834,0.5232615,110350.0,110340.0,0.00014309]
[1756181908045,0.5264315,110350.0,110340.0,0.15626309]
[1756181908408,0.5264315,110350.0,110340.0,0.15726309]
[1756181908624,0.5264315,110350.0,110340.0,0.15722309]
[1756181909033,0.77397352,110350.0,110340.0,0.00114309]
[1756181909203,0.78245491,110350.0,110340.0,0.00114309]
[1756181909403,0.80970991,110350.0,110340.0,0.00114309]
[1756181909626,0.80970991,110350.0,110340.0,0.00314309]
[1756181910311,0.80970991,110350.0,110340.0,0.00214309]
[1756181910518,0.80970991,110350.0,110340.0,0.00014309]
[1756181910865,0.9011552,110350.0,110340.0,0.00014309]
[1756181911140,0.73659381,110350.0,110340.0,0.00014309]
[1756181911483,0.92090869,110350.0,110340.0,0.00014309]
[1756181911714,0.91243501,110350.0,110340.0,0.00014309]
[1756181911914,0.82946025,110350.0,110340.0,0.00014309]
[1756181912405,0.80993905,110350.0,110340.0,0.00014309]
[1756181913170,0.82738807,110350.0,110340.0,0.00014309]
[1756181913369,0.88050082,110350.0,110340.0,0.00014309]
[1756181913586,0.89462031,110350.0,110340.0,0.00014309]
[1756181913787,1.02602431,110350.0,110340.0,0.00014309]
[1756181914079,1.12702431,110350.0,110340.0,0.00014309]
[1756181914495,1.12594018,110350.0,110340.0,0.00014309]
[1756181914704,1.12794018,110350.0,110340.0,0.00014309]
[1756181914966,0.97170018,110350.0,110340.0,0.00014309]
[1756181915171,1.12794018,110350.0,110340.0,0.00014309]
[1756181916104,0.97270018,110350.0,110340.0,0.00014309]
[1756181916329,1.12886018,110350.0,110340.0,0.00014309]
[1756181917407,0.97270018,110350.0,110340.0,0.00014309]
[1756181917536,0.97266066,110350.0,110340.0,0.00014309]
[1756181917735,1.12878066,110350.0,110340.0,0.00014309]
[1756181917941,0.97266066,110350.0,110340.0,0.00014309]
[1756181918148,1.12874066,110350.0,110340.0,0.00014309]
[1756181919717,0.97266066,110350.0,110340.0,0.00014309]
[1756181919966,0.74724291,110350.0,110340.0,0.00014309]
[1756181920172,0.90324291,110350.0,110340.0,0.00014309]
[1756181920558,0.73877238,110350.0,110340.0,0.00014309]
[1756181920764,0.72974106,110350.0,110340.0,0.00517309]
[1756181920989,0.50941136,110350.0,110340.0,0.00517309]
[1756181921381,0.84747136,110350.0,110340.0,0.00517309]
[1756181921594,0.69135059,110350.0,110340.0,0.00517309]
[1756181921808,0.84747059,110350.0,110340.0,0.00517309]
[1756181922423,0.84547059,110350.0,110340.0,0.00517309]
[1756181922655,0.68835059,110350.0,110340.0,0.00517309]
[1756181922870,0.84747059,110350.0,110340.0,0.00517309]
[1756181923077,0.83903723,110350.0,110340.0,0.00517309]
[1756181923287,0.84647087,110350.0,110340.0,0.00517309]
[1756181923514,0.68935087,110350.0,110340.0,0.00517309]
[1756181923754,0.84749087,110350.0,110340.0,0.00221309]
[1756181923979,0.93901616,110350.0,110340.0,0.00014309]
[1756181924196,0.93901616,110350.0,110340.0,0.00221309]
[1756181924197,0.84857087,110350.0,110340.0,0.00221309]
[1756181924421,0.84857087,110350.0,110340.0,0.00014309]
[1756181924637,0.84861087,110350.0,110340.0,0.00014309]
[1756181925304,0.87122394,110350.0,110340.0,0.00014309]
[1756181925730,0.88810134,110350.0,110340.0,0.00014309]
[1756181926554,0.97954663,110350.0,110340.0,0.00014309]
[1756181927004,0.88810134,110350.0,110340.0,0.00014309]
[1756181927449,0.90555036,110350.0,110340.0,0.00014309]
[1756181927918,0.96360158,110350.0,110340.0,0.00014309]
[1756181928128,1.51328421,110350.0,110340.0,0.00014309]
[1756181928337,1.56229535,110350.0,110340.0,0.00014309]
[1756181928755,1.62130188,110350.0,110340.0,0.00014309]
[1756181929007,1.62030188,110350.0,110340.0,0.00014309]
[1756181929223,1.62230188,110350.0,110340.0,0.00014309]
[1756181929483,1.59704103,110350.0,110340.0,0.00014309]
[1756181929705,1.59504103,110350.0,110340.0,0.00014309]
[1756181930051,1.5738488,110350.0,110340.0,0.00014309]
[1756181930263,1.5970947,110350.0,110340.0,0.00014309]
[1756181930762,1.59710288,110350.0,110340.0,1e-08]
[1756181930972,1.57535259,110350.0,110340.0,1e-08]
[1756181931197,1.64070078,110350.0,110340.0,1e-08]
[1756181931438,1.48446078,110350.0,110340.0,1e-08]
[1756181931638,1.61339993,110350.0,110340.0,1e-08]
[1756181932242,0.18129079,110320.0,110310.0,0.00296]
[1756181932463,0.49817307,110320.0,110310.0,0.00550701]
[1756181933016,0.5653699,110320.0,110310.0,0.00550701]
[1756181933230,0.5673899,110320.0,110310.0,0.00550701]
[1756181933459,0.5737412,110320.0,110310.0,0.00550701]
[1756181934396,0.5737412,110320.0,110310.0,0.00750701]
[1756181934575,0.606239,110320.0,110310.0,0.00750701]
[1756181934956,0.447979,110320.0,110310.0,0.00750701]
[1756181935167,0.604179,110320.0,110310.0,0.00750701]
[1756181935896,0.5716812,110320.0,110310.0,0.00750701]
[1756181936222,0.604179,110320.0,110310.0,0.00750701]
[1756181936582,1.045879,110320.0,110310.0,0.00750701]
[1756181936788,1.02898138,110320.0,110310.0,0.00750701]
[1756181937069,1.04596284,110320.0,110310.0,0.00750701]
[1756181937273,1.02158949,110320.0,110310.0,0.00750701]
[1756181937477,0.86538949,110320.0,110310.0,0.00750701]
[1756181937678,1.02162949,110320.0,110310.0,0.00750701]
[1756181938576,0.86538949,110320.0,110310.0,0.00750701]
[1756181938733,1.02158949,110320.0,110310.0,0.00750701]
[1756181939137,1.0703362,110320.0,110310.0,0.00750701]
[1756181939637,1.03853722,110320.0,110310.0,0.00750701]
[1756181939835,1.07036659,110320.0,110310.0,0.00750701]
[1756181940239,1.16181188,110320.0,110310.0,0.00750701]
[1756181940726,1.07036659,110320.0,110310.0,0.00750701]
[1756181940930,0.91416659,110320.0,110310.0,0.00750701]
[1756181941344,1.07032659,110320.0,110310.0,0.00750701]
[1756181941976,1.07033032,110320.0,110310.0,0.00750701]
[1756181942416,1.07047032,110320.0,110310.0,0.00750701]
[1756181942648,1.07033032,110320.0,110310.0,0.00750701]
[1756181943337,1.16177561,110320.0,110310.0,0.00750701]
[1756181944064,1.07029032,110320.0,110310.0,0.00750701]
[1756181945334,1.07235032,110320.0,110310.0,0.00750701]
[1756181945943,1.07029032,110320.0,110310.0,0.00750701]
[1756181946945,0.91417032,110320.0,110310.0,0.18881423]
[1756181947172,1.07049032,110320.0,110310.0,0.00750701]
[1756181948035,1.07049032,110320.0,110310.0,0.18881423]
[1756181948255,1.07049914,110320.0,110310.0,0.00750701]
[1756181950394,1.16454395,110320.0,110310.0,0.00247701]
[1756181950613,1.12896615,110320.0,110310.0,0.00247701]
[1756181951427,1.13204655,110320.0,110310.0,0.00247701]
[1756181952086,1.04316174,110320.0,110310.0,0.00247701]
[1756181952692,1.04316174,110320.0,110310.0,0.00047701]
[1756181952901,1.04328756,110320.0,110310.0,0.00047701]
[1756181953174,1.02371867,110320.0,110310.0,0.00047701]
[1756181953385,1.36390232,110320.0,110310.0,0.00047701]
[1756181953608,1.49133758,110320.0,110310.0,0.00047701]
[1756181954285,1.49134086,110320.0,110310.0,0.00047701]
[1756181954751,1.48826086,110320.0,110310.0,0.00047701]
[1756181955391,1.42599267,110320.0,110310.0,0.00047701]
[1756181955606,1.26967267,110320.0,110310.0,0.00047701]
[1756181955813,1.42607267,110320.0,110310.0,0.00047701]
[1756181956768,1.44352169,110320.0,110310.0,0.00047701]
[1756181957013,1.50886988,110320.0,110310.0,0.00047701]
[1756181957260,0.1813401,110290.0,110280.0,0.00297]
[1756181957485,0.4881645,110290.0,110280.0,0.00499]
[1756181957710,0.48818706,110290.0,110280.0,0.00499]
[1756181958155,0.51545506,110290.0,110280.0,0.00499]
[1756181958359,0.515451,110290.0,110280.0,0.00499]
[1756181958981,0.517531,110290.0,110280.0,0.00499]
[1756181959192,0.634253,110290.0,110280.0,0.001]
[1756181959398,0.7941861,110290.0,110280.0,0.001]
[1756181959857,0.7911061,110290.0,110280.0,0.002]
[1756181960061,0.82048062,110290.0,110280.0,0.002]
[1756181960279,0.66404062,110290.0,110280.0,0.00402]
[1756181960483,0.66404062,110290.0,110280.0,0.00699]
[1756181960484,0.82048062,110290.0,110280.0,0.00699]
[1756181960691,0.66196062,110290.0,110280.0,0.00599]
[1756181961108,0.80140188,110290.0,110280.0,0.00499]
[1756181961317,0.68648193,110290.0,110280.0,0.00499]
[1756181961522,0.83655297,110290.0,110280.0,0.00499]
[1756181962546,0.67162092,110290.0,110280.0,0.00499]
[1756181962931,0.82802092,110290.0,110280.0,0.00499]
[1756181963367,0.80844878,110290.0,110280.0,0.00499]
[1756181963819,0.65204878,110290.0,110280.0,0.18634654]
[1756181964034,0.80860878,110290.0,110280.0,0.18634654]
[1756181964225,0.39664252,110290.0,110280.0,0.18634654]
[1756181964362,0.73458262,110290.0,110280.0,0.18634654]
[1756181965155,0.57798262,110290.0,110280.0,0.18634654]
[1756181965391,0.55324252,110290.0,110280.0,0.18634654]
[1756181965602,0.39664252,110290.0,110280.0,0.18634654]
[1756181966462,0.027268,110290.0,110280.0,0.27780856]
[1756181966695,0.74175582,110320.0,110300.0,0.18132366]
[1756181966904,0.1566,110310.0,110300.0,0.18132366]
[1756181967130,0.4966,110310.0,110300.0,0.18132366]
[1756181967331,0.36924877,110310.0,110300.0,0.18347366]
[1756181967536,0.52588877,110310.0,110300.0,0.18646366]
[1756181967745,0.55315077,110310.0,110300.0,0.18646366]
[1756181968562,0.39651077,110310.0,110300.0,0.18646366]
[1756181970129,0.39651077,110310.0,110300.0,0.18846366]
[1756181970538,0.39651077,110310.0,110300.0,0.00415]
[1756181970539,0.57983799,110310.0,110300.0,0.00415]
[1756181970790,0.57983799,110310.0,110300.0,0.00714]
[1756181971745,0.57781799,110310.0,110300.0,0.00814]
[1756181971951,0.57781799,110310.0,110300.0,0.18946366]
[1756181972230,0.57983799,110310.0,110300.0,0.00515]
[1756181972444,0.57983799,110310.0,110300.0,0.003]
[1756181973288,0.57983799,110310.0,110300.0,0.00515]
[1756181973497,0.57983799,110310.0,110300.0,0.003]
[1756181973711,0.39651077,110310.0,110300.0,0.18946366]
[1756181974129,0.55323077,110310.0,110300.0,0.18946366]
[1756181974349,0.39651077,110310.0,110300.0,0.18946366]
[1756181976096,0.39651077,110310.0,110300.0,0.34618366]
[1756181976318,0.39651077,110310.0,110300.0,0.18946366]
[1756181976468,0.39651077,110310.0,110300.0,0.34614366]
[1756181978513,0.36924877,110310.0,110300.0,0.34614366]
[1756181979159,0.36924877,110310.0,110300.0,0.18946366]
[1756181979363,0.36924877,110310.0,110300.0,0.34614366]
[1756181983201,0.34,110310.0,110300.0,0.43760568]
[1756181984946,0.36551501,110310.0,110300.0,0.43740568]
[1756181986185,0.34,110310.0,110300.0,0.43740568]
[1756181986396,4.767e-05,110320.0,110310.0,0.18130722]
[1756181986608,4.767e-05,110320.0,110310.0,0.18345722]
[1756181986856,4.767e-05,110320.0,110310.0,0.18644722]
[1756181988256,4.767e-05,110320.0,110310.0,0.18744722]
[1756181988879,0.02591342,110320.0,110310.0,0.18744722]
[1756181989421,0.02591342,110320.0,110310.0,0.18844722]
[1756181989785,0.02591342,110320.0,110310.0,0.18744722]
[1756181990013,0.02591342,110320.0,110310.0,0.18944722]
[1756181990676,0.02591342,110320.0,110310.0,0.18344722]
[1756181991139,0.02591342,110320.0,110310.0,0.25316722]
[1756181992276,0.02591342,110320.0,110310.0,0.40940722]
[1756181994895,0.02591342,110320.0,110310.0,0.25316722]
[1756181995126,0.02591342,110320.0,110310.0,0.40924722]
[1756181995401,0.02591342,110320.0,110310.0,0.25316722]
[1756181995617,0.02794342,110320.0,110310.0,0.25017722]
[1756181995827,0.02794342,110320.0,110310.0,0.40629722]
[1756181996446,0.20923421,110320.0,110310.0,0.41010722]
[1756181996655,0.20923421,110320.0,110310.0,0.18430722]
[1756181996656,0.21220421,110320.0,110310.0,0.18430722]
[1756181996841,0.21220421,110320.0,110310.0,0.34038722]
[1756181997048,0.02794342,110320.0,110310.0,0.34038722]
[1756181997409,0.20923421,110320.0,110310.0,0.18430722]
[1756181997591,0.20923421,110320.0,110310.0,0.34042722]
[1756181997995,0.20923421,110320.0,110310.0,0.18430722]
[1756181998201,0.21220421,110320.0,110310.0,0.34042722]
[1756181998358,0.21220421,110320.0,110310.0,0.34038722]
[1756181998521,0.21220421,110320.0,110310.0,0.18430722]
[1756181998728,0.21220421,110320.0,110310.0,0.34038722]
[1756181999178,0.02794342,110320.0,110310.0,0.34252722]
[1756181999381,0.02591342,110320.0,110310.0,0.18963722]
[1756181999612,0.02591342,110320.0,110310.0,0.34567722]
[1756181999760,0.02802342,110320.0,110310.0,0.34567722]
[1756182000168,0.02802342,110320.0,110310.0,0.18963722]
[1756182000373,0.02802342,110320.0,110310.0,0.34567722]
[1756182000374,0.02591342,110320.0,110310.0,0.34567722]
[1756182001148,0.02802342,110320.0,110310.0,0.34046722]
[1756182001871,0.02591342,110320.0,110310.0,0.34579722]
[1756182002081,0.02802342,110320.0,110310.0,0.34046722]
[1756182002447,0.20931421,110320.0,110310.0,0.18430722]
[1756182002648,0.21228421,110320.0,110310.0,0.34046722]
[1756182003073,0.55228421,110320.0,110310.0,0.003]
[1756182003248,0.55228421,110320.0,110310.0,0.15928]
[1756182004344,0.70856421,110320.0,110310.0,0.15928]
[1756182005009,0.70856421,110320.0,110310.0,0.003]
[1756182005556,0.8000095,110320.0,110310.0,0.003]
[1756182006178,0.8000095,110320.0,110310.0,0.001]
[1756182006356,0.8272705,110320.0,110310.0,0.001]
[1756182007245,0.91873252,110320.0,110310.0,0.001]
[1756182007636,0.9272282,110320.0,110310.0,0.001]
[1756182008102,0.83578291,110320.0,110310.0,0.001]
[1756182008539,0.86172918,110320.0,110310.0,0.001]
[1756182008955,0.92065701,110320.0,110310.0,0.001]
[1756182009163,0.76437701,110320.0,110310.0,0.001]
[1756182009379,0.74692799,110320.0,110310.0,0.001]
[1756182009586,0.71947099,110320.0,110310.0,0.18230722]
[1756182009788,0.67653291,110320.0,110310.0,0.00633]
[1756182009997,0.67653291,110320.0,110310.0,0.00314]
[1756182010260,0.34,110310.0,110300.0,0.34067204]
[1756182010463,0.34,110310.0,110300.0,0.34281204]
[1756182011407,0.52130722,110310.0,110300.0,0.18665204]
[1756182011611,0.52638722,110310.0,110300.0,0.15616]
[1756182011835,0.18132366,110300.0,110290.0,0.18452892]
[1756182012002,0.18132366,110300.0,110290.0,0.34282892]
[1756182012618,0.34,110310.0,110300.0,0.18332366]
[1756182012823,0.34,110310.0,110300.0,0.18865366]
[1756182013072,0.34211,110310.0,110300.0,0.18865366]
[1756182013277,0.52341722,110310.0,110300.0,0.18865366]
[1756182013479,0.52341722,110310.0,110300.0,0.15616]
[1756182013620,0.52341722,110310.0,110300.0,0.1583]
[1756182013822,0.52341722,110310.0,110300.0,0.15616]
[1756182014034,0.55067822,110310.0,110300.0,0.33748366]
[1756182014445,0.55067822,110310.0,110300.0,0.15816]
[1756182015060,0.55067822,110310.0,110300.0,0.34048366]
[1756182015459,0.029371,110310.0,110300.0,0.34262366]
[1756182015674,0.027261,110310.0,110300.0,0.34581366]
[1756182016404,0.027261,110310.0,110300.0,0.18965366]
[1756182016580,0.027261,110310.0,110300.0,0.34581366]
[1756182017155,0.21067822,110310.0,110300.0,0.003]
[1756182017330,0.21067822,110310.0,110300.0,0.16445]
[1756182017589,0.21067822,110310.0,110300.0,0.15912]
[1756182018218,0.21067822,110310.0,110300.0,0.003]
[1756182018433,0.21067822,110310.0,110300.0,0.15872]
[1756182019050,0.029371,110310.0,110300.0,0.34218366]
[1756182019280,0.029371,110310.0,110300.0,0.34537366]
[1756182019930,0.21067822,110310.0,110300.0,0.002]
[1756182020594,0.21067822,110310.0,110300.0,0.003]
[1756182021239,0.21067822,110310.0,110300.0,0.18432366]
[1756182022232,0.21067822,110310.0,110300.0,0.18646366]
[1756182022413,0.029371,110310.0,110300.0,0.18965366]
[1756182022670,0.027261,110310.0,110300.0,0.18965366]
[1756182023215,0.21067822,110310.0,110300.0,0.34084366]
[1756182023775,0.21067822,110310.0,110300.0,0.18432366]
[1756182023937,0.21067822,110310.0,110300.0,0.34080366]
[1756182027308,0.21067822,110310.0,110300.0,0.34284366]
[1756182027997,0.21067822,110310.0,110300.0,0.34580366]
[1756182028220,0.21067822,110310.0,110300.0,0.003]
[1756182028221,0.55364822,110310.0,110300.0,0.003]
[1756182028437,0.58574061,110310.0,110300.0,0.003]
[1756182028662,0.55364822,110310.0,110300.0,0.003]
[1756182029194,0.55364822,110310.0,110300.0,0.002]
[1756182029430,0.18132366,110300.0,110290.0,0.34061943]
[1756182029644,0.18132366,110300.0,110290.0,0.34265943]
[1756182030701,0.18148366,110300.0,110290.0,0.18833943]
[1756182031133,0.18148366,110300.0,110290.0,0.34461943]
[1756182031551,0.18148366,110300.0,110290.0,0.16428]
[1756182032572,0.18148366,110300.0,110290.0,0.003]
[1756182032781,0.20874666,110300.0,110290.0,0.15924]
[1756182032986,0.20874666,110300.0,110290.0,0.16424]
[1756182034243,0.54874666,110300.0,110290.0,0.003]
[1756182034456,0.73206407,110300.0,110290.0,0.003]
[1756182034665,0.64314868,110300.0,110290.0,0.003]
[1756182034911,0.64020868,110300.0,110290.0,0.003]
[1756182035115,0.66572722,110300.0,110290.0,0.003]
[1756182035294,0.82196722,110300.0,110290.0,0.003]
[1756182035601,0.82196722,110300.0,110290.0,0.00404]
[1756182035809,0.82196722,110300.0,110290.0,0.007]
[1756182036022,0.82196722,110300.0,110290.0,0.00204]
[1756182036233,0.82196092,110300.0,110290.0,0.006]
[1756182036438,0.82204092,110300.0,110290.0,0.006]
[1756182036672,0.66572092,110300.0,110290.0,0.006]
[1756182036883,0.367263,110300.0,110290.0,0.18960685]
[1756182037093,0.367263,110300.0,110290.0,0.1873401]
[1756182039863,0.34,110300.0,110290.0,0.1873401]
[1756182041368,0.34,110300.0,110290.0,0.3438601]
[1756182041613,0.34,110300.0,110290.0,0.3439001]
[1756182043193,0.34,110300.0,110290.0,0.3438601]
[1756182043815,0.34,110300.0,110290.0,0.43532212]
[1756182044988,0.34,110300.0,110290.0,0.43732212]
[1756182045823,0.34,110300.0,110290.0,0.43632212]
[1756182046209,0.34,110300.0,110290.0,0.43932212]
[1756182048521,0.34,110300.0,110290.0,0.28280212]
[1756182048727,0.34,110300.0,110290.0,0.43920212]
[1756182049153,0.342,110300.0,110290.0,0.1863401]
[1756182049372,0.342,110300.0,110290.0,0.3428201]
[1756182049788,0.52332366,110300.0,110290.0,0.1863401]
[1756182049991,0.52629366,110300.0,110290.0,0.3428601]
[1756182050224,0.342,110300.0,110290.0,0.3428601]
[1756182050638,0.52332366,110300.0,110290.0,0.3428601]
[1756182051044,0.342,110300.0,110290.0,0.3428601]
[1756182051422,0.002,110300.0,110290.0,0.3428601]
[1756182051837,0.002,110300.0,110290.0,0.3449001]
[1756182052048,0.20857423,110310.0,110290.0,0.3478601]
[1756182052246,0.22557685,110310.0,110290.0,0.3478601]
[1756182052479,0.002,110300.0,110290.0,0.3449001]
[1756182052653,0.002,110300.0,110290.0,0.3478601]
[1756182052854,0.002,110300.0,110290.0,0.3448601]
[1756182053101,0.21154423,110310.0,110290.0,0.3448601]
[1756182053310,0.22854696,110310.0,110290.0,0.3448601]
[1756182053517,0.34,110300.0,110290.0,0.3458601]
[1756182054523,0.34,110300.0,110290.0,0.3447001]
[1756182055083,0.34027,110300.0,110290.0,0.3447001]
[1756182055594,0.34027,110300.0,110290.0,0.3427001]
[1756182055826,0.34,110300.0,110290.0,0.3457001]
[1756182056010,0.34,110300.0,110290.0,0.3477001]
[1756182059644,0.34,110300.0,110290.0,0.43916212]
[1756182060283,0.46761342,110320.0,110310.0,0.18130722]
[1756182060489,0.46761342,110320.0,110310.0,0.34271722]
[1756182060490,0.02591342,110320.0,110310.0,0.34271722]
[1756182064328,0.02591342,110320.0,110310.0,0.34471722]
[1756182064535,4.767e-05,110320.0,110310.0,0.43617924]
[1756182064736,4.767e-05,110320.0,110310.0,0.27977924]
[1756182064943,4.767e-05,110320.0,110310.0,0.43633924]
[1756182065582,4.767e-05,110320.0,110310.0,0.43833924]
[1756182066817,4.767e-05,110320.0,110310.0,0.28177924]
[1756182066985,4.767e-05,110320.0,110310.0,0.43829924]
[1756182067995,4.767e-05,110320.0,110310.0,0.43821924]
[1756182070577,4.767e-05,110320.0,110310.0,0.28177924]